bitfinex-derivatives/quotes_BNBF0:USTF0_20250424
["timestamp","ask_amount","ask_price","bid_price","bid_amount"]
[1745461215025,0.28695351,607.66,605.53,0.30295785]
[1745461216727,1.25793448,607.67,605.53,0.30295785]
[1745461217026,0.28695351,607.65,605.53,0.30295785]
[1745461217226,1.25793448,607.59,605.61,1.03538227]
[1745461217421,1.25793448,607.59,605.62,0.30295785]
[1745461219526,1.25793448,607.56,605.62,0.30295785]
[1745461219727,1.25793448,607.56,605.63,0.30295746]
[1745461221132,0.28695469,607.55,605.63,0.30295746]
[1745461222430,0.28695469,607.55,605.58,0.30295746]
[1745461222732,1.25793448,607.65,605.58,0.30295746]
[1745461222934,1.25793448,607.65,605.57,1.03538227]
[1745461223126,1.25793448,607.65,605.59,0.30292089]
[1745461223329,1.25793448,607.65,605.6,0.30292089]
[1745461223531,1.25793448,607.65,605.58,0.30292089]
[1745461223831,1.25793448,607.65,605.57,1.03538227]
[1745461224030,0.28697126,607.64,605.57,1.32235589]
[1745461224932,0.28697126,607.64,605.58,0.3030223]
[1745461225834,1.25793448,607.65,605.58,0.3030223]
[1745461226133,0.28697362,607.63,605.58,0.3030223]
[1745461226332,0.28697362,607.63,605.61,1.03538227]
[1745461227534,0.28697362,607.63,605.62,1.169]
[1745461228734,1.25793448,607.68,605.62,1.169]
[1745461229129,0.28696416,607.62,605.63,0.30302027]
[1745461229331,0.28696416,607.62,605.62,1.169]
[1745461229532,0.28696416,607.62,605.63,0.30301296]
[1745461230936,0.28696416,607.62,605.62,1.169]
[1745461231137,0.28696416,607.62,605.63,0.30301877]
[1745461231432,0.28696416,607.62,605.62,1.169]
[1745461231738,1.25793448,607.75,605.62,1.169]
[1745461231937,1.25793448,607.75,605.63,1.46502233]
[1745461232138,0.28695588,607.61,605.64,0.30302233]
[1745461232334,1.25793448,607.69,605.64,0.30302233]
[1745461233539,0.28696179,607.68,605.64,0.30302233]
[1745461235139,1.25793448,607.64,605.64,0.30302233]
[1745461237237,1.25793448,607.64,605.63,1.162]
[1745461237435,1.25793448,607.64,605.64,0.30302227]
[1745461237640,1.25793448,607.64,605.65,0.303022]
[1745461237841,1.25793448,607.46,605.64,0.303022]
[1745461238140,1.25793448,607.46,605.65,0.303022]
[1745461238340,1.25793448,607.46,605.64,0.303022]
[1745461238543,1.25793448,607.46,605.65,0.303022]
[1745461238841,1.25793448,607.46,605.66,0.303022]
[1745461239041,1.25793448,607.46,605.67,0.30302128]
[1745461239339,1.25793448,607.46,605.68,0.30302128]
[1745461239641,1.25793448,607.46,605.69,0.30302128]
[1745461239838,1.25793448,607.51,605.64,0.30302128]
[1745461240043,1.25793448,607.51,605.65,0.30302128]
[1745461240340,1.25793448,607.51,605.66,0.30302128]
[1745461240541,1.25793448,607.51,605.65,1.35]
[1745461240841,1.25793448,607.51,605.66,0.30302303]
[1745461241042,1.25793448,607.51,605.65,1.35]
[1745461241243,0.28698072,607.5,605.65,1.35]
[1745461243842,1.25793448,607.71,605.65,1.35]
[1745461244137,0.28695706,607.49,605.65,1.35]
[1745461244437,1.25793448,607.71,605.65,1.35]
[1745461245244,0.28695469,607.7,605.65,1.35]
[1745461246944,1.25793448,607.79,605.65,1.35]
[1745461247141,0.28694523,607.69,605.65,1.35]
[1745461247338,1.25793448,607.79,605.65,1.35]
[1745461248145,0.28694523,607.78,605.65,1.35]
[1745461249046,0.28694523,607.78,605.66,0.30299854]
[1745461250146,0.28694523,607.78,605.65,1.35]
[1745461250350,0.28694523,607.78,605.66,0.30298922]
[1745461251048,0.28694523,607.78,605.66,1.77598922]
[1745461251350,0.28694523,607.78,605.67,0.30298922]
[1745461251649,0.28694523,607.78,605.66,1.473]
[1745461251851,0.28694523,607.78,605.67,0.30298933]
[1745461252845,1.25793448,607.81,605.67,0.30298933]
[1745461253250,1.25793448,607.81,605.66,1.473]
[1745461253450,1.25793448,607.81,605.67,0.3029896]
[1745461254048,0.28693458,607.8,605.67,0.3029896]
[1745461256455,0.28693458,607.8,605.66,1.473]
[1745461256653,0.28693458,607.8,605.67,0.30298948]
[1745461258153,1.25793448,607.62,605.67,0.30298948]
[1745461259653,1.25793448,607.62,605.66,1.473]
[1745461259854,1.25793448,607.62,605.67,0.30299208]
[1745461260648,1.25793448,607.43,605.67,0.30299208]
[1745461261054,1.25793448,607.43,605.68,0.3029939]
[1745461261349,1.25793448,607.43,605.69,0.3029939]
[1745461261555,1.25793448,607.43,605.67,0.3029939]
[1745461261854,1.25793448,607.43,605.68,0.3029939]
[1745461262048,1.25793448,607.43,605.69,0.3029939]
[1745461262249,0.28697954,607.42,605.67,0.3029939]
[1745461263154,1.25793448,607.35,605.67,0.3029939]
[1745461263853,1.25793448,607.35,605.66,1.75997954]
[1745461264056,1.25793448,607.35,605.67,0.30298617]
[1745461265255,0.28698901,607.34,605.67,0.30298617]
[1745461265759,1.25793448,607.22,605.67,0.30298617]
[1745461267054,1.25793448,607.22,605.66,0.28698901]
[1745461267256,1.25793448,607.22,605.67,0.30298514]
[1745461268056,1.25793448,607.22,605.66,0.58998953]
[1745461268253,1.25793448,607.23,605.69,1.03538227]
[1745461268458,1.25793448,607.23,605.7,0.30298514]
[1745461268758,1.25793448,607.23,605.71,0.30299518]
[1745461268950,1.25793448,607.23,605.7,0.30299518]
[1745461270157,1.25793448,607.23,605.69,1.03538227]
[1745461270456,1.25793448,607.23,605.7,0.30299527]
[1745461271758,0.28700439,607.26,605.7,0.30299527]
[1745461271759,1.25793448,607.22,605.7,0.30299527]
[1745461271958,1.25793448,607.22,605.68,0.30299527]
[1745461272155,1.25793448,607.22,605.69,0.30299527]
[1745461272356,1.25793448,607.22,605.7,0.30299527]
[1745461272557,1.25793448,607.22,605.68,0.30299527]
[1745461272857,1.25793448,607.22,605.69,0.30299527]
[1745461273057,1.25793448,607.22,605.68,0.30299527]
[1745461273259,1.25793448,607.22,605.69,0.30299527]
[1745461273452,1.25793448,607.22,605.67,1.03538227]
[1745461273652,1.25793448,607.22,605.68,0.30299045]
[1745461274254,0.28700321,607.26,605.68,0.30299045]
[1745461274559,0.28700321,607.26,605.67,0.30299045]
[1745461274861,0.28700321,607.26,605.68,0.30299045]
[1745461275059,0.28700321,607.26,605.66,0.28700321]
[1745461275252,0.28700321,607.26,605.67,0.30299168]
[1745461276760,1.25793448,607.47,605.67,0.30299168]
[1745461276959,1.25793448,607.47,605.65,1.35]
[1745461276960,1.25793448,607.47,605.66,0.30299168]
[1745461277158,1.25793448,607.47,605.67,0.30299168]
[1745461277459,1.25793448,607.47,605.66,0.30299168]
[1745461277661,1.25793448,607.47,605.67,0.30299168]
[1745461277858,1.25793448,607.47,605.68,0.30299168]
[1745461278057,0.28697599,607.46,605.66,0.28697599]
[1745461278261,0.28697599,607.46,605.67,0.30299168]
[1745461279157,1.54491047,607.46,605.67,0.30299168]
[1745461279357,1.54491047,607.46,605.66,0.28697599]
[1745461279556,1.54491047,607.46,605.67,0.3029875]
[1745461279964,1.25793448,607.46,605.67,1.5089875]
[1745461280262,1.25793448,607.46,605.68,0.3029875]
[1745461281063,0.28697481,607.45,605.68,0.3029875]
[1745461281463,0.28697481,607.45,605.67,1.49297481]
[1745461281663,0.28697481,607.45,605.68,0.30298729]
[1745461284265,0.28697481,607.45,605.67,1.49297481]
[1745461285869,1.25793448,607.6,605.67,1.206]
[1745461287068,0.28695824,607.59,605.67,1.49295824]
[1745461291166,0.28695824,607.59,605.67,2.73395824]
[1745461291870,1.25793448,607.7,605.67,2.447]
[1745461293076,0.28694641,607.69,605.67,2.73394641]
[1745461293370,0.28694641,607.69,605.68,0.30299836]
[1745461293571,1.25793448,607.67,605.68,0.30299836]
[1745461294471,1.25793448,607.67,605.67,2.73394641]
[1745461294672,1.25793448,607.67,605.68,0.30299809]
[1745461296094,0.28694996,607.66,605.67,2.73394996]
[1745461296267,1.25793448,607.49,605.68,0.3029986]
[1745461297672,1.25793448,607.49,605.67,4.14994996]
[1745461297865,1.25793448,607.49,605.68,0.30299857]
[1745461298171,0.28697126,607.48,605.68,0.30299857]
[1745461299170,1.25793448,607.33,605.68,0.30299857]
[1745461301270,1.25793448,607.19,605.68,0.30299857]
[1745461302575,1.25793448,607.19,605.67,4.14997126]
[1745461302780,1.25793448,607.19,605.68,0.30299972]
[1745461304674,2.14023575,608.06,605.68,0.30299972]
[1745461304675,1.25793448,607.16,605.68,0.30299972]
[1745461305775,1.25793448,607.16,605.67,4.15001031]
[1745461306676,0.28701031,607.26,605.67,4.15001031]
[1745461306876,1.25793448,607.29,605.67,3.863]
[1745461308077,0.28700439,607.28,605.67,4.15000439]
[1745461309877,1.25793448,607.56,605.67,3.863]
[1745461311083,0.28697244,607.55,605.67,4.14997244]
[1745461311980,1.25793448,607.54,605.67,4.14997244]
[1745461312779,1.25793448,607.54,605.67,3.863]
[1745461313681,1.25793448,607.54,605.68,0.30301831]
[1745461313879,1.25793448,607.54,605.67,2.622]
[1745461314077,0.28700321,607.53,605.67,2.622]
[1745461315982,1.25793448,607.57,605.67,2.622]
[1745461317279,0.28699256,607.56,605.67,2.622]
[1745461317679,0.28699256,607.56,605.67,4.155]
[1745461318083,0.28699256,607.56,605.67,5.507]
[1745461318385,1.25793448,607.46,605.67,5.507]
[1745461319184,0.28700558,607.45,605.67,5.507]
[1745461321282,1.25793448,607.38,605.67,5.507]
[1745461322187,0.28701504,607.37,605.67,5.507]
[1745461323487,1.54494952,607.37,605.67,5.507]
[1745461323693,1.54494952,607.37,605.68,0.30304636]
[1745461324689,0.28701504,607.37,605.68,0.30304636]
[1745461324882,0.6080397,612.08,605.68,0.30304636]
[1745461325283,0.28680925,607.36,605.68,0.30304636]
[1745461325488,0.6080397,612.08,605.68,0.30304636]
[1745461326288,0.28680925,609.11,605.68,0.30304636]
[1745461326489,0.28680925,609.11,605.68,1.59504636]
[1745461326689,0.28680925,609.11,605.69,0.30304636]
[1745461327193,1.2582434,607.09,605.69,0.30304636]
[1745461329093,0.28704819,607.13,605.69,0.30304636]
[1745461331693,1.2582434,607.11,605.69,0.30304636]
[1745461333197,1.2582434,607.11,605.7,1.18]
[1745461333396,1.2582434,607.11,605.71,0.30304636]
[1745461334091,1.2582434,607.11,605.72,0.30307454]
[1745461334294,1.2582434,607.11,605.71,0.30307454]
[1745461334494,1.2582434,607.11,605.7,1.18]
[1745461334695,1.2582434,607.12,605.71,1.165]
[1745461335197,0.28706003,607.11,605.71,1.165]
[1745461336798,1.2582434,607.12,605.71,1.165]
[1745461338002,1.2582434,606.97,605.71,1.165]
[1745461340601,1.2582434,607.01,605.71,1.165]
[1745461343803,0.28707305,607.05,605.71,1.165]
[1745461349004,1.2582434,607.27,605.71,1.165]
[1745461349203,0.28706121,607.04,605.71,1.165]
[1745461349398,1.2582434,607.27,605.71,1.165]
[1745461349905,1.2582434,607.19,605.71,1.165]
[1745461350300,0.28707068,607.18,605.71,1.165]
[1745461351907,1.2582434,607.19,605.71,1.165]
[1745461352407,2.14076135,607.82,605.71,1.165]
[1745461352408,1.2582434,607.23,605.71,1.165]
[1745461352707,1.2582434,607.23,605.72,1.488]
[1745461353104,0.28708134,607.22,605.72,1.488]
[1745461355310,1.2582434,607.21,605.72,1.488]
[1745461355511,1.2582434,607.21,605.73,1.328]
[1745461357614,0.28708134,607.22,605.73,1.328]
[1745461357615,1.54532474,607.22,605.73,1.328]
[1745461357813,1.2582434,607.22,605.73,1.328]
[1745461359010,0.28706239,607.21,605.73,1.328]
[1745461360817,1.2582434,607.01,605.73,1.328]
[1745461362115,0.28708726,607.0,605.73,1.328]
[1745461366822,1.2582434,606.98,605.73,1.328]
[1745461367524,0.28709081,606.97,605.74,1.148]
[1745461369425,1.2582434,606.98,605.74,1.148]
[1745461370128,1.2582434,606.98,605.75,1.255]
[1745461370327,1.2582434,606.98,605.75,2.421]
[1745461370628,1.54530461,607.07,605.75,2.421]
[1745461373731,0.28706121,607.07,605.75,2.421]
[1745461377534,1.2582434,607.38,605.76,0.30303425]
[1745461377830,0.28699137,607.16,605.76,0.30303425]
[1745461378035,1.2582434,607.38,605.76,0.30303425]
[1745461378237,1.2582434,607.38,605.77,0.30302448]
[1745461378434,1.2582434,607.38,605.75,2.421]
[1745461378629,1.2582434,607.3,605.75,2.421]
[1745461378835,1.2582434,607.3,605.76,0.30302907]
[1745461379033,1.2582434,607.3,605.75,2.421]
[1745461382336,0.28699137,607.37,605.75,2.421]
[1745461383240,0.28699137,607.37,605.75,1.255]
[1745461384938,1.2582434,607.54,605.75,1.255]
[1745461385244,0.28697244,607.36,605.75,1.255]
[1745461385543,1.2582434,607.54,605.75,1.255]
[1745461386339,2.14076135,607.67,605.75,1.255]
[1745461386543,1.2582434,607.76,605.75,1.255]
[1745461387045,0.28696771,607.75,605.75,1.255]
[1745461387344,0.28696771,607.75,605.76,1.161]
[1745461387955,1.2582434,607.76,605.76,1.161]
[1745461388242,0.28696652,607.74,605.76,1.161]
[1745461389349,0.28696652,607.74,605.77,1.452]
[1745461390948,1.2582434,607.79,605.77,1.452]
[1745461392249,0.28696179,607.78,605.77,1.452]
[1745461392449,1.2582434,607.74,605.77,1.452]
[1745461394950,1.2582434,607.72,605.77,1.452]
[1745461396948,1.2582434,607.72,605.77,3.014]
[1745461397349,1.2582434,607.41,605.77,3.014]
[1745461398049,1.2582434,607.41,605.77,4.103]
[1745461398249,0.28700676,607.4,605.77,4.103]
[1745461400553,1.2582434,607.26,605.77,4.103]
[1745461403148,1.2582434,607.31,605.77,4.103]
[1745461404051,0.28699256,607.3,605.77,4.103]
[1745461405955,1.2582434,607.31,605.77,4.103]
[1745461406254,0.28699256,607.29,605.77,4.103]
[1745461408957,1.2582434,607.65,605.77,4.103]
[1745461409157,0.28695233,607.28,605.77,4.103]
[1745461409453,1.2582434,607.65,605.77,4.103]
[1745461410659,0.28695233,607.64,605.77,4.103]
[1745461412055,1.2582434,607.65,605.77,4.103]
[1745461412259,0.28695233,607.63,605.77,4.103]
[1745461412762,1.54519573,607.63,605.77,4.103]
[1745461414757,0.28695233,607.63,605.77,4.103]
[1745461414963,1.2582434,607.7,605.77,4.103]
[1745461415162,0.28694641,607.62,605.77,4.103]
[1745461415558,1.2582434,607.7,605.77,4.103]
[1745461416363,0.28694641,607.69,605.77,4.103]
[1745461417364,1.2582434,607.54,605.77,4.103]
[1745461418261,0.28696534,607.53,605.77,4.103]
[1745461420563,1.54520874,607.53,605.77,4.103]
[1745461420963,1.2582434,607.53,605.77,4.103]
[1745461421259,0.28696652,607.52,605.77,4.103]
[1745461423666,1.2582434,607.51,605.77,4.103]
[1745461424259,0.28696889,607.5,605.77,4.103]
[1745461426266,1.2582434,607.43,605.77,4.103]
[1745461427263,0.28697836,607.42,605.77,4.103]
[1745461429963,1.2582434,607.43,605.77,4.103]
[1745461430669,1.2582434,607.39,605.77,4.103]
[1745461431169,0.28698309,607.38,605.77,4.103]
[1745461432966,1.2582434,607.43,605.77,4.103]
[1745461433171,0.28697836,607.37,605.77,4.103]
[1745461435770,1.2582434,607.45,605.77,4.103]
[1745461436269,0.28697599,607.44,605.77,4.103]
[1745461437872,1.2582434,607.32,605.77,4.103]
[1745461440170,1.54521939,607.44,605.77,4.103]
[1745461441873,1.2582434,607.44,605.77,4.103]
[1745461442274,0.28697717,607.43,605.77,4.103]
[1745461442979,1.2582434,607.39,605.77,4.103]
[1745461443176,1.2582434,607.39,605.78,0.30299788]
[1745461443675,1.2582434,607.39,605.79,0.30299788]
[1745461443974,1.2582434,607.39,605.8,0.30299788]
[1745461444174,1.2582434,607.39,605.76,0.30299788]
[1745461444374,1.2582434,607.39,605.77,0.30299788]
[1745461444573,1.2582434,607.39,605.78,0.30299788]
[1745461444769,1.2582434,607.39,605.76,0.30299788]
[1745461444974,1.2582434,607.39,605.77,0.30299788]
[1745461445170,1.2582434,607.39,605.78,0.302977]
[1745461445779,1.2582434,607.44,605.78,0.302977]
[1745461446270,0.28696298,607.43,605.78,0.302977]
[1745461446576,0.28696298,607.43,605.77,1.435]
[1745461446777,0.28696298,607.43,605.78,0.30298158]
[1745461447376,0.28696298,607.43,605.78,1.28998158]
[1745461447578,0.28696298,607.43,605.79,0.30298158]
[1745461447978,1.2582434,607.44,605.79,0.30298158]
[1745461448178,0.28696179,607.42,605.79,0.30298158]
[1745461449078,1.2582434,607.36,605.79,0.30298158]
[1745461451183,0.28697126,607.35,605.79,0.30298158]
[1745461451384,0.28697126,607.35,605.78,3.75597126]
[1745461451580,0.28697126,607.35,605.79,0.3029832]
[1745461453887,1.2582434,607.37,605.79,0.3029832]
[1745461454281,1.2582434,607.33,605.79,0.3029832]
[1745461454481,1.2582434,607.33,605.78,3.75597007]
[1745461454688,1.2582434,607.33,605.79,0.30297934]
[1745461456086,1.2582434,607.33,605.78,3.75597007]
[1745461456287,1.2582434,607.33,605.79,0.30297987]
[1745461456789,1.2582434,607.29,605.79,0.30297987]
[1745461457386,0.28697954,607.28,605.79,0.30297987]
[1745461457687,0.28697954,607.28,605.78,3.75597954]
[1745461457885,0.28697954,607.28,605.79,0.30298117]
[1745461459885,0.28697954,607.28,605.79,1.27498117]
[1745461460189,1.2582434,607.48,605.8,0.30298117]
[1745461460390,0.28695588,607.27,605.8,0.30298117]
[1745461460591,1.2582434,607.48,605.8,0.30298117]
[1745461460889,1.2582434,607.48,605.79,0.972]
[1745461461091,1.2582434,607.48,605.8,0.30298144]
[1745461461391,0.28695588,607.47,605.8,0.30298144]
[1745461462787,1.2582434,607.48,605.8,0.30298144]
[1745461463190,1.2582434,607.48,605.8,1.57498144]
[1745461463191,0.28695588,607.46,605.8,1.57498144]
[1745461463391,0.28695588,607.46,605.81,0.30298144]
[1745461465493,0.28695588,607.46,605.81,1.83898144]
[1745461465692,0.28695588,607.46,605.81,1.536]
[1745461465893,0.28695588,607.46,605.82,0.30298499]
[1745461466093,1.2582434,607.47,605.82,0.30298499]
[1745461466294,0.28695469,607.45,605.82,0.30298499]
[1745461467190,0.28695469,607.45,605.81,1.536]
[1745461467388,0.28695469,607.45,605.81,1.82295469]
[1745461467593,0.28695469,607.45,605.82,0.30298453]
[1745461467996,1.2582434,607.4,605.82,0.30298453]
[1745461468294,1.2582434,607.4,605.81,1.82295469]
[1745461470397,0.28695469,607.45,605.81,1.82295469]
[1745461471893,1.2582434,607.95,605.81,1.536]
[1745461472194,0.28689792,607.44,605.81,1.82289792]
[1745461472498,1.2582434,607.95,605.81,1.82289792]
[1745461473300,0.6080397,614.39,605.81,1.82289792]
[1745461473301,1.2582434,607.97,605.81,1.82289792]
[1745461474200,0.28689555,607.96,605.81,1.82289792]
[1745461474998,1.2582434,607.97,605.81,1.536]
[1745461475203,0.28689555,607.95,605.81,1.82289555]
[1745461477902,1.2582434,607.96,605.81,1.536]
[1745461478300,0.28689673,607.95,605.81,1.82289673]
[1745461478702,1.2582434,607.92,605.81,1.82289673]
[1745461480910,1.2582434,607.92,605.81,1.536]
[1745461481934,1.2582434,607.51,605.81,1.536]
[1745461483611,1.2582434,607.51,605.82,0.30300011]
[1745461484116,0.28696416,607.5,605.81,0.30300011]
[1745461484406,0.28696416,607.5,605.82,0.30300011]
[1745461484601,0.28696416,607.5,605.8,0.30300058]
[1745461485003,0.28696416,607.5,605.79,0.972]
[1745461485703,1.2582434,607.46,605.79,0.972]
[1745461486102,1.2582434,607.46,605.79,2.324]
[1745461487205,0.28697244,607.45,605.79,2.324]
[1745461487808,0.28697244,607.45,605.79,3.425]
[1745461490328,0.28657896,607.44,605.79,3.425]
[1745461491221,1.26038366,607.49,605.79,3.425]
[1745461493508,1.26038366,607.48,605.79,3.425]
[1745461494213,0.28698191,607.47,605.79,3.425]
[1745461495927,1.26038366,607.48,605.79,3.425]
[1745461496211,0.28697481,607.46,605.79,3.425]
[1745461498914,1.26038366,607.61,605.79,3.425]
[1745461499213,0.28695943,607.45,605.79,3.425]
[1745461499413,1.26038366,607.61,605.79,3.425]
[1745461499614,1.26038366,607.47,605.79,3.425]
[1745461500317,0.28697599,607.46,605.79,3.425]
[1745461502223,1.26038366,607.44,605.79,3.425]
[1745461504619,1.26038366,607.37,605.79,3.425]
[1745461505318,0.28696179,607.36,605.79,3.425]
[1745461505618,0.28696179,607.36,605.79,4.744]
[1745461510920,1.26038366,607.79,605.79,4.744]
[1745461511221,0.28691211,607.78,605.79,4.744]
[1745461511819,1.26038366,607.73,605.79,4.744]
[1745461513919,1.26038366,607.74,605.79,4.744]
[1745461515222,1.26038366,607.74,605.8,0.30295922]
[1745461516024,1.26038366,607.74,605.79,1.319]
[1745461516217,1.26038366,607.74,605.8,0.30294269]
[1745461516623,1.26038366,607.72,605.8,0.30294269]
[1745461517524,0.28690383,607.71,605.8,0.30294269]
[1745461518524,0.28690383,607.71,605.8,1.88494269]
[1745461518726,0.28690383,607.71,605.81,0.30294269]
[1745461519026,0.28690383,607.71,605.81,1.59394269]
[1745461519230,0.28690383,607.71,605.82,0.30294987]
[1745461519525,0.28690383,607.71,605.83,1.064]
[1745461519726,1.26038366,607.54,605.84,0.30294987]
[1745461521831,1.26038366,607.46,605.84,0.30294987]
[1745461522331,1.26038366,607.46,605.83,1.064]
[1745461522627,1.26038366,607.46,605.84,0.30295588]
[1745461523427,2.14440276,607.58,605.84,0.30295588]
[1745461523428,1.26038366,607.44,605.84,0.30295588]
[1745461523931,1.26038366,607.44,605.83,1.064]
[1745461524128,1.26038366,607.44,605.84,0.30295615]
[1745461524332,0.28694878,607.43,605.84,0.30295615]
[1745461525437,0.28694878,607.43,605.83,1.064]
[1745461525637,1.26038366,607.42,605.85,1.248]
[1745461525830,1.26038366,607.42,605.86,0.30295802]
[1745461527037,1.26038366,607.42,605.85,1.248]
[1745461527339,1.26038366,607.42,605.86,0.30296116]
[1745461528132,1.26038366,607.33,605.86,0.30296116]
[1745461528636,1.26038366,607.33,605.85,1.248]
[1745461528837,1.26038366,607.33,605.86,0.3029613]
[1745461529237,0.28695469,607.32,605.86,0.3029613]
[1745461530338,1.26038366,607.31,605.86,0.3029613]
[1745461532240,0.28695706,607.3,605.86,0.3029613]
[1745461533539,0.28695706,607.3,605.87,0.30295067]
[1745461533739,0.28695706,607.3,605.86,0.30295067]
[1745461534936,2.14440276,607.88,605.85,1.53495706]
[1745461534937,1.26038366,607.42,605.85,1.248]
[1745461535141,1.26038366,607.42,605.86,0.30295259]
[1745461536241,0.28694405,607.41,605.86,0.30295259]
[1745461537945,1.26038366,607.42,605.86,0.30295259]
[1745461538340,0.28694405,607.4,605.86,0.30295259]
[1745461538840,0.28694405,607.4,605.87,1.313]
[1745461539044,0.28694405,607.4,605.88,0.30295259]
[1745461541142,1.26038366,607.45,605.88,0.30295259]
[1745461541347,1.26038366,607.45,605.87,1.313]
[1745461541541,1.26038366,607.45,605.88,0.3029541]
[1745461541845,1.26038366,607.4,605.88,0.3029541]
[1745461542264,0.28694405,607.39,605.88,0.3029541]
[1745461542443,0.28694405,607.39,605.89,0.3029541]
[1745461542747,0.28694405,607.39,605.9,0.3029541]
[1745461543046,0.28694405,607.39,605.87,1.313]
[1745461543247,0.28694405,607.39,605.88,0.30295437]
[1745461544243,1.26038366,607.34,605.88,0.30295437]
[1745461546146,1.26038366,607.34,605.87,1.313]
[1745461546347,1.26038366,607.34,605.88,0.30295295]
[1745461546552,1.26038366,607.27,605.88,0.30295295]
[1745461547649,1.26038366,607.27,605.87,1.313]
[1745461547945,1.26038366,607.27,605.88,1.30895268]
[1745461548148,1.26038366,607.27,605.88,1.006]
[1745461548548,0.28695943,607.29,605.88,1.006]
[1745461550150,1.26038366,607.46,605.88,1.006]
[1745461550345,0.28693577,607.29,605.88,1.006]
[1745461550551,1.26038366,607.46,605.88,1.006]
[1745461551356,1.26038366,607.44,605.88,1.006]
[1745461551550,1.26038366,607.44,605.89,0.959]
[1745461553350,0.28693695,607.43,605.89,0.959]
[1745461554658,1.26038366,607.42,605.9,1.274]
[1745461555761,1.26038366,607.42,605.91,0.30296656]
[1745461556259,0.28694286,607.41,605.91,0.30296656]
[1745461556958,1.26038366,607.24,605.91,0.30296656]
[1745461557259,1.26038366,607.24,605.9,1.274]
[1745461557460,1.26038366,607.24,605.91,0.30296648]
[1745461557658,1.26038366,607.24,605.9,1.274]
[1745461557859,1.26038366,607.24,605.91,0.30296631]
[1745461559158,1.26038366,607.29,605.92,0.30296675]
[1745461559358,0.28696416,607.27,605.91,0.30296675]
[1745461560663,0.28696416,607.27,605.9,1.274]
[1745461560863,0.28696416,607.27,605.91,0.30296306]
[1745461561665,1.26038366,607.24,605.9,1.274]
[1745461561858,1.26038366,607.24,605.91,0.30295934]
[1745461564760,1.26038366,607.25,605.9,1.274]
[1745461564964,1.26038366,607.25,605.91,0.30295577]
[1745461565962,1.26038366,607.25,605.9,1.274]
[1745461567368,0.28696298,607.28,605.9,1.274]
[1745461567968,1.26038366,607.54,605.9,1.274]
[1745461568271,0.2869334,607.27,605.9,1.274]
[1745461568571,1.26038366,607.54,605.9,1.274]
[1745461569370,0.28691566,607.53,605.9,1.274]
[1745461570272,1.26038366,607.52,605.9,1.274]
[1745461572174,0.28691447,607.51,605.9,1.274]
[1745461573977,1.26038366,607.61,605.9,1.274]
[1745461574280,0.28690383,607.5,605.9,1.274]
[1745461574574,1.26038366,607.61,605.9,1.274]
[1745461574777,1.26038366,607.61,605.9,2.794]
[1745461575874,0.28690383,607.6,605.91,0.30293462]
[1745461576987,1.26038366,607.63,605.91,0.30293462]
[1745461577381,1.26038366,607.63,605.9,1.52]
[1745461577583,1.26038366,607.63,605.91,0.30295137]
[1745461578182,0.28690146,607.62,605.91,0.30295137]
[1745461578984,0.28690146,607.62,605.9,1.52]
[1745461579185,1.26038366,607.41,605.91,0.30295447]
[1745461579585,1.26038366,607.41,605.91,1.89895447]
[1745461579786,1.26038366,607.41,605.91,1.596]
[1745461580286,1.26038366,607.41,605.92,0.30296165]
[1745461580486,1.26038366,607.41,605.91,2.583]
[1745461580685,1.26038366,607.41,605.92,0.30295917]
[1745461581287,0.2869405,607.4,605.92,0.30295917]
[1745461582089,1.26038366,607.38,605.92,0.30295917]
[1745461584288,0.28694405,607.37,605.92,0.30295917]
[1745461584990,1.26038366,607.34,605.92,0.30295917]
[1745461585285,1.26038366,607.34,605.91,2.583]
[1745461586184,0.28695114,607.33,605.92,0.30296549]
[1745461586691,0.28695114,607.33,605.91,2.583]
[1745461586989,0.28695114,607.33,605.92,0.30296575]
[1745461587189,0.28695114,607.33,605.91,2.583]
[1745461587391,1.26038366,607.31,605.92,0.30296575]
[1745461588587,1.26038366,607.31,605.91,2.583]
[1745461590286,0.28695469,607.3,605.91,2.583]
[1745461591992,1.26038366,608.07,605.91,2.583]
[1745461592290,0.28686481,607.29,605.91,2.583]
[1745461592491,1.26038366,608.07,605.91,2.583]
[1745461592791,1.26038366,608.07,605.91,3.75]
[1745461593292,0.28686481,608.06,605.91,3.75]
[1745461595008,1.26038366,608.07,605.91,3.75]
[1745461595292,0.28686481,608.05,605.91,3.75]